bitfinex/quotes_SOLUSD_20250907
["timestamp","ask_amount","ask_price","bid_price","bid_amount"]
[1757284471271,23.59753441,205.17,205.16,0.1]
[1757284471477,61.29753441,205.17,205.16,0.1]
[1757284472180,60.58753441,205.17,205.16,0.1]
[1757284472574,61.29753441,205.17,205.16,0.1]
[1757284474182,23.59753441,205.17,205.16,0.1]
[1757284474486,61.29753441,205.17,205.16,0.1]
[1757284475791,61.35753441,205.17,205.16,0.1]
[1757284477865,23.65753441,205.17,205.16,0.1]
[1757284478165,61.35753441,205.17,205.16,0.1]
[1757284481079,61.35753441,205.17,205.16,1e-08]
[1757284481475,15.60752765,205.17,205.16,1e-08]
[1757284481685,15.60752765,205.17,205.16,0.67000001]
[1757284481686,53.30752765,205.17,205.16,0.67000001]
[1757284481979,51.35559401,205.17,205.16,0.67000001]
[1757284482181,58.69560077,205.17,205.16,1e-08]
[1757284484183,59.34560077,205.17,205.16,1e-08]
[1757284484377,61.29772492,205.17,205.16,1e-08]
[1757284484585,87.29772492,205.17,205.16,1e-08]
[1757284491082,49.59772492,205.17,205.16,1e-08]
[1757284491279,87.29772492,205.17,205.16,1e-08]
[1757284493089,49.59772492,205.17,205.16,1e-08]
[1757284493288,87.29772492,205.17,205.16,1e-08]
[1757284500411,49.59772492,205.17,205.16,1e-08]
[1757284500598,87.29772492,205.17,205.16,1e-08]
[1757284501306,49.59772492,205.17,205.16,1e-08]
[1757284501498,86.62772492,205.17,205.16,1e-08]
[1757284501810,87.27772492,205.17,205.16,1e-08]
[1757284502405,84.81172508,205.17,205.16,1e-08]
[1757284502606,48.94772492,205.17,205.16,0.67000001]
[1757284502801,46.99560077,205.17,205.16,0.67000001]
[1757284502993,86.62753441,205.17,205.16,1e-08]
[1757284505007,87.27753441,205.17,205.16,1e-08]
[1757284505207,86.62753441,205.17,205.16,1e-08]
[1757284505712,48.94753441,205.17,205.16,1e-08]
[1757284506110,87.30753441,205.17,205.16,1e-08]
[1757284507111,46.48153457,205.17,205.16,1e-08]
[1757284507413,86.62753441,205.17,205.16,1e-08]
[1757284508515,87.30753441,205.17,205.16,1e-08]
[1757284508892,90.96260579,205.17,205.16,1e-08]
[1757284509097,53.28260579,205.17,205.16,1e-08]
[1757284509293,64.96260579,205.17,205.16,1e-08]
[1757284511507,24.13660595,205.17,205.16,1e-08]
[1757284511712,64.28260579,205.17,205.16,1e-08]
[1757284512307,60.62753441,205.17,205.16,1e-08]
[1757284512495,26.60204711,205.17,205.16,1e-08]
[1757284512700,64.28204711,205.17,205.16,1e-08]
[1757284512899,26.60204711,205.17,205.16,1e-08]
[1757284513108,64.96204711,205.17,205.16,1e-08]
[1757284514018,27.28204711,205.17,205.16,1e-08]
[1757284514217,64.96204711,205.17,205.16,1e-08]
[1757284514413,66.34940409,205.17,205.16,1e-08]
[1757284520018,39.59559401,205.15,205.14,1e-08]
[1757284520209,81.12895083,205.15,205.14,1e-08]
[1757284520410,81.80895083,205.15,205.14,1e-08]
[1757284520720,83.76136084,205.15,205.14,1e-08]
[1757284521409,46.08136084,205.15,205.14,1e-08]
[1757284521722,83.76136084,205.15,205.14,1e-08]
[1757284522022,88.63584292,205.15,205.14,1e-08]
[1757284529707,62.63584292,205.15,205.14,1e-08]
[1757284529914,66.28965542,205.15,205.14,1e-08]
[1757284530510,66.28930995,205.15,205.14,1e-08]
[1757284531122,28.60930995,205.15,205.14,1e-08]
[1757284531321,66.26930995,205.15,205.14,1e-08]
[1757284532606,28.60930995,205.15,205.14,1e-08]
[1757284532807,66.26930995,205.15,205.14,1e-08]
[1757284534125,28.60930995,205.15,205.14,1e-08]
[1757284534336,66.26930995,205.15,205.14,1e-08]
[1757284536632,28.60930995,205.15,205.14,1e-08]
[1757284536935,66.26930995,205.15,205.14,1e-08]
[1757284537143,28.60930995,205.15,205.14,1e-08]
[1757284537329,66.26930995,205.15,205.14,1e-08]
[1757284539729,28.60930995,205.15,205.14,1e-08]
[1757284540043,66.26930995,205.15,205.14,1e-08]
[1757284541840,66.26673435,205.15,205.14,1e-08]
[1757284542449,24.75337753,205.15,205.14,1e-08]
[1757284542639,66.26673435,205.15,205.14,1e-08]
[1757284543344,66.32673435,205.15,205.14,1e-08]
[1757284544947,28.66673435,205.15,205.14,1e-08]
[1757284545154,66.32673435,205.15,205.14,1e-08]
[1757284545445,27.98673435,205.15,205.14,0.68000001]
[1757284545648,87.99584292,205.15,205.14,0.68000001]
[1757284546749,50.33584292,205.15,205.14,0.68000001]
[1757284547043,87.99584292,205.15,205.14,0.68000001]
[1757284547950,84.1424861,205.15,205.14,0.68000001]
[1757284548147,87.99584292,205.15,205.14,0.68000001]
[1757284550954,87.99584292,205.15,205.14,1e-08]
[1757284553454,50.33584292,205.15,205.14,1e-08]
[1757284553660,87.97584292,205.15,205.14,1e-08]
[1757284555641,87.97584292,205.15,205.14,0.68000001]
[1757284555842,87.97584292,205.15,205.14,1e-08]
[1757284556137,145.99559401,205.14,205.07,2.19335683]
[1757284556359,46.36855004,205.13,205.07,2.19335683]
[1757284556740,4.87655945,205.12,205.07,2.19335683]
[1757284556940,37.64,205.11,205.07,2.19335683]
[1757284557140,37.64,205.11,205.07,7.0696925]
[1757284557862,37.64,205.11,205.07,2.19335683]
[1757284558058,37.64,205.11,205.08,0.22]
[1757284558559,42.51658693,205.11,205.08,0.22]
[1757284559459,4.87658693,205.11,205.1,3.85335682]
[1757284559662,0.06,205.15,205.1,4.07335682]
[1757284559846,37.64,205.14,205.13,3.85335682]
[1757284560049,37.64,205.14,205.13,4.07335682]
[1757284561645,0.06,205.15,205.13,4.07335682]
[1757284561850,0.06,205.15,205.14,0.22]
[1757284562057,37.7,205.15,205.14,0.22]
[1757284563673,0.06,205.15,205.14,0.22]
[1757284563857,37.7,205.15,205.14,0.22]
[1757284566353,37.7,205.15,205.13,3.85335682]
[1757284566558,0.06,205.15,205.14,0.22]
[1757284566872,37.7,205.15,205.14,0.22]
[1757284567067,0.06,205.15,205.14,4.07335682]
[1757284567272,37.68,205.15,205.14,4.07335682]
[1757284567564,0.06,205.15,205.14,4.07335682]
[1757284567755,37.68,205.15,205.14,4.07335682]
[1757284568365,37.68,205.15,205.14,8.94807652]
[1757284575159,37.68,205.15,205.14,8.72807652]
[1757284575470,37.68,205.15,205.14,3.85335682]
[1757284576274,37.68,205.15,205.14,8.72807652]
[1757284576466,37.68,205.15,205.14,7.33947312]
[1757284579389,0.06,205.15,205.14,7.55947312]
[1757284579561,37.68,205.15,205.14,7.55947312]
[1757284579751,37.68,205.15,205.14,7.33947312]
[1757284579957,0.06,205.15,205.14,7.33947312]
[1757284580175,37.66,205.15,205.14,7.33947312]
[1757284582278,38.37,205.15,205.14,4.8747197]
[1757284582464,38.37,205.15,205.12,14.63521721]
[1757284582465,38.37,205.15,205.13,4.87495677]
[1757284582670,0.71,205.14,205.13,4.87495677]
[1757284582873,0.71,205.14,205.13,7.33971019]
[1757284583874,0.71,205.14,205.13,7.33971019]
[1757284584679,0.71,205.14,205.1,38.18882999]
[1757284584680,0.71,205.14,205.09,4.87578178]
[1757284584882,0.71,205.13,205.09,4.87578178]
[1757284585182,0.71,205.12,205.09,4.87578178]
[1757284585479,38.31,205.11,205.09,4.87578178]
[1757284585684,0.71,205.1,205.09,4.87578178]
[1757284586288,0.71,205.1,205.08,4.87614589]
[1757284586487,0.71,205.1,205.08,7.34089931]
[1757284587389,37.6,205.09,205.08,7.34089931]
[1757284587889,0.71,205.09,205.08,7.34089931]
[1757284588188,38.31,205.09,205.08,7.34089931]
[1757284588390,37.6,205.09,205.08,7.34089931]
[1757284589480,0.71,205.12,205.08,7.34089931]
[1757284589682,7.3405352,205.14,205.08,7.34089931]
[1757284589683,0.71,205.14,205.1,2.46475342]
[1757284589879,38.31,205.13,205.12,2.46475342]
[1757284590791,38.31,205.13,205.12,7.33994842]
[1757284591571,0.71,205.13,205.12,7.33994842]
[1757284592086,38.31,205.13,205.12,7.33994842]
[1757284595379,38.31,205.13,205.12,4.875195]
[1757284595589,38.28,205.13,205.12,4.875195]
[1757284595787,38.28,205.13,205.08,4.87614589]
[1757284595991,0.68,205.12,205.09,2.46475342]
[1757284596175,0.68,205.11,205.09,2.46475342]
[1757284596375,37.6,205.13,205.1,2.46475342]
[1757284596872,0.68,205.12,205.1,2.46475342]
[1757284597087,0.68,205.11,205.1,2.46475342]
[1757284597469,0.68,205.11,205.1,7.34042382]
[1757284598095,37.6,205.13,205.1,7.34042382]
[1757284598277,0.68,205.12,205.1,7.34042382]
[1757284598482,0.68,205.11,205.1,7.34042382]
[1757284599798,0.06,205.15,205.1,7.34042382]
[1757284600116,0.68,205.14,205.12,2.46475342]
[1757284600395,0.68,205.14,205.13,2.46475342]
[1757284600575,38.28,205.14,205.13,2.46475342]
[1757284600774,38.28,205.14,205.12,2.46475342]
[1757284600992,38.28,205.13,205.12,2.46475342]
[1757284601378,38.28,205.13,205.11,2.46475342]
[1757284601570,37.6,205.13,205.1,4.8756704]
[1757284601786,38.28,205.12,205.1,4.8756704]
[1757284601989,37.6,205.12,205.1,4.8756704]
[1757284602179,0.68,205.11,205.1,4.8756704]
[1757284602589,38.28,205.11,205.1,4.8756704]
[1757284603180,38.28,205.11,205.09,4.87590813]
[1757284603387,37.6,205.1,205.09,7.34066155]
[1757284604592,38.28,205.1,205.09,7.34066155]
[1757284605183,38.28,205.1,205.07,0.03]
[1757284605409,0.68,205.09,205.07,4.9063807]
[1757284605587,40.06475342,205.1,205.07,4.9063807]
[1757284605792,0.68,205.08,205.07,4.9063807]
[1757284605982,0.68,205.08,205.07,0.03]
[1757284611394,37.6,205.08,205.07,2.71475342]
[1757284611780,0.06,205.1,205.07,28.71475342]
[1757284611980,0.06,205.1,205.09,2.46475342]
[1757284612203,0.74,205.1,205.09,2.46475342]
[1757284612713,0.74,205.1,205.09,28.46475342]
[1757284612903,0.06,205.1,205.09,28.46475342]
[1757284613309,0.06,205.1,205.09,28.68475342]
[1757284613614,37.66,205.1,205.09,28.68475342]
[1757284613801,37.66,205.1,205.09,28.46475342]
[1757284614205,0.06,205.13,205.09,33.34066155]
[1757284614421,37.66,205.13,205.12,2.46475342]
[1757284614800,0.06,205.13,205.12,28.46475342]
[1757284616111,0.06,205.13,205.12,7.33994842]
[1757284616295,0.06,205.13,205.12,33.33994842]
[1757284617002,0.06,205.13,205.12,30.875195]
[1757284617206,0.74,205.13,205.12,33.33994842]
[1757284617795,38.32,205.13,205.12,33.33994842]
[1757284618206,37.64,205.13,205.12,33.33994842]
[1757284620234,38.32,205.13,205.12,33.33994842]
[1757284621110,37.64,205.13,205.12,33.33994842]
[1757284621722,38.32,205.13,205.12,33.33994842]
[1757284622521,37.64,205.13,205.12,33.33994842]
[1757284622836,38.32,205.13,205.12,33.33994842]
[1757284623014,38.32,205.13,205.12,26.0]
[1757284623328,38.32,205.13,205.08,0.22]
[1757284623329,38.32,205.13,205.11,26.0]
[1757284623538,38.32,205.13,205.1,2.46475342]
[1757284623539,0.68,205.12,205.1,2.46475342]
[1757284623726,0.68,205.11,205.1,2.46475342]
[1757284624635,38.26,205.11,205.1,2.46475342]
[1757284625118,38.26,205.11,205.1,7.34042382]
[1757284625311,38.26,205.11,205.07,0.03]
[1757284625510,40.72475342,205.11,205.07,0.03]
[1757284625711,40.72475342,205.11,205.07,4.90635466]
[1757284625938,0.67,205.1,205.07,4.90635466]
[1757284626233,0.67,205.09,205.07,4.90635466]
[1757284626440,0.67,205.09,205.07,7.37110808]
[1757284626615,0.67,205.11,205.08,2.46475342]
[1757284626815,38.25,205.1,205.07,4.90635466]
[1757284627023,37.58,205.1,205.09,4.87590813]
[1757284627336,38.25,205.1,205.09,4.87590813]
[1757284627836,38.25,205.1,205.08,4.87610723]
[1757284628040,0.67,205.09,205.08,4.87610723]
[1757284629035,37.58,205.09,205.08,7.34086065]
[1757284629248,38.25,205.09,205.08,7.34086065]
[1757284629953,37.58,205.09,205.08,7.34086065]
[1757284630125,38.25,205.09,205.08,7.34086065]
[1757284630512,37.58,205.09,205.08,7.34086065]
[1757284631630,0.67,205.1,205.08,7.34086065]
[1757284631825,37.58,205.09,205.08,4.87610723]
[1757284632013,38.25,205.09,205.08,4.87610723]
[1757284633234,38.25,205.09,205.07,2.49475342]
[1757284633414,37.58,205.09,205.07,2.49475342]
[1757284633614,0.67,205.08,205.07,2.49475342]
[1757284634334,0.67,205.08,205.07,0.03]
[1757284634814,3.13475342,205.08,205.07,0.03]
[1757284637022,13.59559401,205.07,205.04,0.03]
[1757284637331,39.59559401,205.04,204.94,2.46475342]
[1757284637512,16.06034743,205.0,204.93,2.46475342]
[1757284637715,53.82034743,205.0,204.93,2.46475342]
[1757284637920,54.49034743,205.0,204.93,2.46475342]
[1757284638142,54.49034743,205.0,204.95,4.87920832]
[1757284638344,55.88404488,205.0,204.95,4.87920832]
[1757284639328,55.88404488,205.0,204.93,3.85845087]
[1757284639844,55.88404488,205.0,204.94,4.87938119]
[1757284640043,55.88404488,205.0,204.95,4.87923605]
[1757284640254,55.88404488,205.0,204.93,4.87956527]
[1757284640447,55.88404488,205.0,204.92,10.17681682]
[1757284640621,55.88404488,205.0,204.94,4.87945044]
[1757284641520,55.88404488,205.0,204.95,4.87919569]
[1757284642045,55.86404488,205.0,204.95,4.87919569]
[1757284642741,55.86404488,205.0,204.96,4.87898785]
[1757284643440,55.86404488,205.0,204.95,4.87918677]
[1757284643637,18.12404488,205.0,204.95,4.87918677]
[1757284643840,0.67,205.0,204.97,4.87855904]
[1757284644040,42.26845087,205.0,204.94,4.19845087]
[1757284644246,42.26845087,205.0,204.96,4.87899928]
[1757284644629,42.26845087,205.0,204.95,4.87921097]
[1757284645330,4.52845087,205.0,204.95,4.87921097]
[1757284645545,42.26845087,205.0,204.95,4.87921097]
[1757284647346,55.84404488,205.0,204.95,4.87921097]
[1757284648050,18.12404488,205.0,204.96,0.03]
[1757284648356,42.24845087,205.0,204.96,4.90897457]
[1757284648739,37.72,205.0,204.99,4.97825709]
[1757284649145,0.67,205.02,204.99,4.97825709]
[1757284649327,37.72,205.01,204.99,4.97825709]
[1757284649750,37.72,205.0,204.99,4.97825709]
[1757284650064,37.72,205.0,204.99,0.1]
[1757284650943,37.72,205.0,204.99,4.97828674]
[1757284651636,37.72,205.0,204.99,0.1]
[1757284652153,4.52845087,205.01,204.99,0.1]
[1757284652357,38.39,205.0,204.99,0.1]
[1757284658664,0.67,205.0,204.99,0.1]
[1757284658860,38.35,205.0,204.99,0.1]
[1757284659364,38.33,205.0,204.99,0.1]
[1757284660550,42.18845087,205.0,204.99,0.1]
[1757284660870,4.52845087,205.0,204.99,0.1]
[1757284661063,60.66209366,205.0,204.99,0.1]
[1757284663962,55.78404488,205.0,204.99,0.1]
[1757284664678,23.00209366,205.0,204.99,0.1]
[1757284664975,60.66209366,205.0,204.99,0.1]
[1757284665965,55.78404488,205.0,204.99,0.1]
[1757284666469,18.12404488,205.0,204.99,0.1]
[1757284666860,55.76404488,205.0,204.99,0.1]
[1757284667747,60.64209366,205.0,204.99,0.1]
[1757284668153,55.76404488,205.0,204.99,0.1]
[1757284669776,60.64209366,205.0,204.99,0.1]
[1757284670070,55.74404488,205.0,204.99,0.1]
[1757284673175,18.12404488,205.0,204.99,0.1]
[1757284673380,55.74404488,205.0,204.99,0.1]
[1757284675864,18.12404488,205.0,204.99,0.1]
[1757284676190,55.74404488,205.0,204.99,0.1]
[1757284676676,18.12404488,205.0,204.99,0.1]
[1757284676890,55.74404488,205.0,204.99,0.1]
[1757284677656,3.85845087,205.0,204.99,0.1]
[1757284677854,0.06,205.02,204.99,0.1]
[1757284678070,37.62,205.01,204.99,0.44]
[1757284678658,0.06,205.02,204.99,0.1]
[1757284678879,37.62,205.01,204.99,4.97827989]
[1757284679869,0.06,205.02,204.99,4.97827989]
[1757284680068,37.62,205.01,204.99,4.97827989]
[1757284681165,0.06,205.02,205.0,4.19845087]
[1757284681360,37.62,205.01,205.0,0.34]
[1757284682569,37.62,205.01,205.0,4.19845087]
[1757284683082,37.62,205.01,205.0,9.07649965]
[1757284683475,37.62,205.01,205.0,8.73649965]
[1757284684394,0.06,205.02,205.0,8.73649965]
[1757284684572,0.06,205.02,205.01,3.85845087]
[1757284684766,37.68,205.02,205.01,3.85845087]
[1757284684960,38.34,205.02,205.01,3.85845087]
[1757284685163,37.68,205.02,205.01,8.7362617]
[1757284686383,0.06,205.02,205.01,4.87781083]
[1757284686683,38.38,205.02,205.0,3.85845087]
[1757284686985,0.7,205.01,205.0,3.85845087]
[1757284687582,38.32,205.01,205.0,3.85845087]
[1757284687884,37.62,205.01,205.0,3.85845087]
[1757284688476,37.62,205.01,205.0,29.85845087]
[1757284690892,0.06,205.02,205.0,34.73641266]
[1757284691079,37.6,205.01,205.0,30.87796179]
[1757284691896,37.6,205.01,205.0,26.0]
[1757284692094,38.3,205.01,204.99,0.1]
[1757284692279,42.15845087,205.01,204.99,0.1]
[1757284693096,17.45404488,205.0,204.99,0.1]
[1757284693297,13.59559401,205.0,204.99,0.1]
[1757284693487,18.15404488,205.0,204.99,0.1]
[1757284695097,23.03209366,205.0,204.99,0.1]
[1757284697988,37.6851818,205.0,204.99,0.1]
[1757284698621,41.54363267,205.0,204.99,0.1]
[1757284699612,37.6851818,205.0,204.99,0.1]
[1757284700395,36.29702073,205.0,204.99,0.1]
[1757284702295,46.17817993,205.0,204.99,0.1]
[1757284703803,36.29702073,205.0,204.99,0.1]
[1757284704203,46.17817993,205.0,204.99,0.1]
[1757284704997,83.79817993,205.0,204.99,0.1]
[1757284707105,83.79817993,205.0,204.99,1e-08]
[1757284707309,46.17817993,205.0,204.99,1e-08]
[1757284707504,83.79817993,205.0,204.99,1e-08]
[1757284709515,46.17817993,205.0,204.99,1e-08]
[1757284709688,83.79817993,205.0,204.99,1e-08]
[1757284710189,95.99330188,205.0,204.96,0.03]
[1757284710394,42.06588381,204.97,204.96,0.03]
[1757284710593,79.68588381,204.97,204.96,0.03]
[1757284710805,82.34001068,204.97,204.96,0.03]
[1757284712096,87.21877342,204.97,204.96,0.03]
[1757284713610,16.06588381,204.95,204.94,0.03]
[1757284713800,39.59559401,204.91,204.84,0.34]
[1757284713992,2.4702898,204.85,204.84,0.34]
[1757284714194,40.0902898,204.85,204.84,0.34]
[1757284714511,13.59559401,204.89,204.84,0.34]
[1757284714697,16.06588381,204.89,204.84,2.8102898]
[1757284714893,13.59559401,204.9,204.86,2.4702898]
[1757284715208,37.62,204.89,204.87,2.8102898]
[1757284715406,37.62,204.88,204.86,2.4702898]
[1757284715910,16.06588381,204.92,204.87,0.34]
[1757284716111,37.62,204.91,204.87,0.34]
[1757284716307,40.7502898,204.91,204.85,7.69180159]
[1757284716706,40.0902898,204.91,204.86,0.34]
[1757284716898,13.59559401,204.92,204.87,2.4702898]
[1757284717099,13.59559401,204.92,204.88,0.34]
[1757284717298,37.62,204.91,204.88,0.34]
[1757284717498,16.06588381,204.92,204.89,0.34]
[1757284717734,37.62,204.91,204.89,0.34]
[1757284718018,16.06588381,204.92,204.89,0.34]
[1757284718315,37.62,204.91,204.89,0.34]
[1757284718718,37.62,204.9,204.89,0.34]
[1757284719098,28.65678283,204.93,204.87,7.35141483]
[1757284719406,40.0902898,204.92,204.87,2.8102898]
[1757284719619,40.0902898,204.92,204.88,0.34]
[1757284720609,37.62,204.92,204.88,2.8102898]
[1757284721194,13.59559401,204.92,204.88,2.8102898]
[1757284721398,37.62,204.91,204.88,2.8102898]
[1757284721598,37.62,204.91,204.87,2.4702898]
[1757284721820,14.25559401,204.9,204.84,5.22163119]
[1757284722026,38.28,204.89,204.84,7.69192099]
[1757284722499,37.62,204.89,204.85,2.8102898]
[1757284722827,37.62,204.89,204.86,2.8102898]
[1757284723312,37.62,204.88,204.86,2.4702898]
[1757284723504,37.62,204.88,204.86,2.8102898]
[1757284723821,13.59559401,204.9,204.86,2.8102898]
[1757284724018,13.59559401,204.91,204.87,2.8102898]
[1757284724321,37.62,204.89,204.87,2.8102898]
[1757284724702,37.62,204.89,204.87,2.4702898]
[1757284725221,37.62,204.89,204.86,2.4702898]
[1757284725895,0.66,204.9,204.86,2.4702898]
[1757284726099,37.62,204.89,204.86,2.4702898]
[1757284726407,0.66,204.88,204.82,31.22213978]
[1757284726609,37.62,204.87,204.84,2.4702898]
[1757284726814,37.62,204.87,204.85,2.4702898]
[1757284728616,37.62,204.87,204.85,7.35188038]
[1757284728925,37.62,204.87,204.86,2.4702898]
[1757284729122,20.94608933,204.91,204.86,2.4702898]
[1757284729314,14.25559401,204.91,204.87,2.4702898]
[1757284729514,38.28,204.9,204.87,2.4702898]
[1757284730023,37.62,204.9,204.86,2.4702898]
[1757284730328,37.62,204.9,204.86,2.8102898]
[1757284730535,38.28,204.9,204.87,2.4702898]
[1757284730749,13.59559401,204.91,204.86,0.34]
[1757284731048,37.62,204.89,204.87,2.4702898]
[1757284731634,37.62,204.88,204.87,2.4702898]
[1757284734926,0.66,204.9,204.87,2.4702898]
[1757284735136,37.62,204.89,204.87,2.4702898]
[1757284735532,38.28,204.89,204.87,2.4702898]
[1757284736141,0.66,204.88,204.84,4.8816349]
[1757284736349,0.66,204.88,204.86,2.4702898]
[1757284736724,37.62,204.87,204.86,2.4702898]
[1757284737142,38.28,204.87,204.84,7.35208979]
[1757284737450,0.66,204.86,204.84,7.35208979]
[1757284738255,37.62,204.87,204.84,7.35208979]
[1757284738443,38.28,204.87,204.84,7.35208979]
[1757284738752,38.28,204.87,204.83,0.03]
[1757284739120,37.62,204.86,204.84,2.4702898]
[1757284739955,37.62,204.86,204.84,7.35201408]
[1757284740344,37.62,204.86,204.85,2.4702898]
[1757284742234,38.28,204.86,204.85,2.4702898]
[1757284742857,0.66,204.89,204.85,2.4702898]
[1757284743173,37.62,204.88,204.86,2.4702898]
[1757284743871,38.28,204.88,204.86,2.4702898]
[1757284744052,37.62,204.87,204.86,2.4702898]
[1757284744434,37.62,204.87,204.85,4.88157089]
[1757284744640,37.62,204.87,204.86,2.4702898]
[1757284745458,38.28,204.87,204.83,0.03]
[1757284745766,43.16157089,204.87,204.86,2.4702898]
[1757284746144,42.50157089,204.87,204.86,2.4702898]
[1757284746345,42.50157089,204.87,204.85,7.3518524]
[1757284746545,43.16157089,204.87,204.85,7.3518524]
[1757284747648,4.88157089,204.87,204.86,2.4702898]
[1757284747968,42.50157089,204.87,204.86,2.4702898]
[1757284749065,37.62,204.87,204.86,2.4702898]
[1757284749639,37.62,204.87,204.86,7.3516722]
[1757284749844,37.62,204.87,204.86,4.8813824]
[1757284750044,37.62,204.87,204.86,7.3516722]
[1757284750452,21.14299952,204.92,204.86,7.6916722]
[1757284750658,21.14299952,204.92,204.91,2.4702898]
[1757284750860,74.07966709,204.92,204.91,2.4702898]
[1757284751058,59.42299952,204.92,204.87,0.34]
[1757284751247,59.42299952,204.92,204.91,2.4702898]
[1757284751764,21.80299952,204.92,204.91,2.4702898]
[1757284752061,59.42299952,204.92,204.91,2.4702898]
[1757284755473,59.42299952,204.92,204.91,7.3504811]
[1757284756955,21.14299952,204.92,204.91,7.3504811]
[1757284757159,58.76299952,204.92,204.91,7.3504811]
[1757284757857,21.14299952,204.92,204.91,7.3504811]
[1757284758058,21.14299952,204.92,204.91,7.6904811]
[1757284758259,0.06,204.97,204.94,26.0]
[1757284758469,0.06,205.02,204.99,26.0]
[1757284758685,0.06,205.02,204.99,38.351449]
[1757284758979,0.06,205.02,204.99,28.8102898]
[1757284759169,0.06,205.02,204.99,35.64146315]
[1757284759778,0.06,205.02,204.99,35.30146315]
[1757284762478,0.06,205.02,204.99,36.68588559]
[1757284766296,0.72,205.02,204.99,36.68588559]
[1757284768265,0.72,205.0,204.99,27.95288661]
[1757284768464,0.72,205.0,204.99,3.85471224]
[1757284768887,0.72,205.0,204.98,3.85471224]
[1757284769072,0.66,204.99,204.98,3.85471224]
[1757284769581,38.26,204.99,204.96,26.0]
[1757284769756,0.66,204.98,204.96,1.95317269]
[1757284769959,0.66,204.97,204.93,3.85471224]
[1757284770159,0.66,204.96,204.93,3.85471224]
[1757284770383,0.66,204.95,204.94,3.85471224]
[1757284770967,0.66,204.95,204.92,4.87981735]
[1757284771185,0.66,204.95,204.94,3.85471224]
[1757284772366,0.66,204.98,204.94,29.85471224]
[1757284772683,37.6,204.98,204.97,3.85471224]
[1757284773069,0.66,204.98,204.97,3.85471224]
[1757284774285,0.66,204.98,204.94,30.87934004]
[1757284774484,0.66,204.98,204.97,3.85471224]
[1757284775171,0.71,205.0,204.97,3.85471224]
[1757284775371,37.6,204.99,204.97,3.85471224]
[1757284775572,0.65,204.98,204.95,4.8791977]
[1757284775778,0.65,204.97,204.94,29.85471224]
[1757284775975,0.5,204.97,204.94,29.85471224]
[1757284776178,0.65,204.96,204.94,29.85471224]
[1757284776382,0.65,204.95,204.94,29.85471224]
[1757284777001,0.65,204.95,204.94,34.73418916]
[1757284777184,0.65,204.95,204.93,4.90965691]
[1757284777496,0.65,204.95,204.94,3.85471224]
[1757284779678,0.65,204.95,204.93,0.03]
[1757284779885,0.65,204.95,204.94,3.85471224]
[1757284783392,37.6,204.97,204.94,3.85471224]
[1757284783581,37.6,204.97,204.96,3.85471224]
[1757284784493,0.06,205.0,204.97,26.0]
[1757284784691,0.06,205.0,204.99,3.85471224]
[1757284785683,0.06,205.0,204.98,4.87843288]
[1757284785900,0.06,205.0,204.99,3.85471224]
[1757284787594,0.06,205.0,204.99,8.73299898]
[1757284788896,0.06,205.0,204.99,4.87828674]
[1757284789199,0.06,205.0,204.99,8.73299898]
[1757284790392,0.06,205.0,204.99,12.92771122]
[1757284790599,0.06,205.01,204.99,27.5743608]
[1757284790895,0.06,205.02,205.0,8.04942448]
[1757284791095,0.71,205.02,204.99,4.87828674]
[1757284791277,0.06,205.02,205.01,3.85471224]
[1757284791678,0.06,205.02,205.01,5.80740818]
[1757284792187,0.06,205.02,205.01,37.02521901]
[1757284792781,0.06,205.03,205.01,11.02521901]
[1757284792999,0.06,205.03,205.01,10.68521901]
[1757284793290,0.06,205.03,205.02,4.19471224]
[1757284793479,0.06,205.03,205.02,30.19471224]